bitfinex-derivatives/quotes_ETHF0:USTF0_20260305
["timestamp","ask_amount","ask_price","bid_price","bid_amount"]
[1772684275733,0.67037332,2124.7,2124.2,0.66163682]
[1772684275932,0.67037332,2124.7,2124.1,0.23533]
[1772684277042,0.67037332,2124.7,2124.0,0.66163682]
[1772684279139,0.67037332,2124.5,2124.0,0.66163682]
[1772684280042,0.67037332,2124.5,2123.9,0.66163682]
[1772684282346,0.67037332,2124.7,2124.1,0.66163682]
[1772684285843,1.59490872,2124.2,2123.7,0.66163682]
[1772684286037,0.67037332,2124.1,2123.7,0.66163682]
[1772684286841,0.67037332,2123.9,2123.6,0.00429269]
[1772684287037,1.59490872,2123.8,2123.6,0.00429269]
[1772684287241,0.67037332,2123.7,2123.3,0.66163682]
[1772684287642,0.67037332,2123.5,2123.2,0.66163682]
[1772684288044,1.59490872,2123.6,2123.2,0.66163682]
[1772684288250,0.00542741,2123.5,2123.2,0.66690811]
[1772684288952,0.67580073,2123.5,2123.2,0.66690811]
[1772684289750,0.67580073,2123.5,2123.2,0.00527129]
[1772684294449,0.67580073,2123.5,2123.2,0.66690811]
[1772684294753,0.00542741,2123.5,2123.2,0.66690811]
[1772684295051,0.67580073,2123.5,2123.2,0.66690811]
[1772684295854,0.00542741,2123.5,2123.2,0.66690811]
[1772684296153,0.67037332,2123.7,2123.2,0.66690811]
[1772684296553,0.67037332,2124.1,2123.4,0.66163682]
[1772684297155,0.67396415,2124.1,2123.4,0.66163682]
[1772684297554,0.67396415,2124.1,2123.3,0.23542]
[1772684298257,0.67396415,2124.1,2123.4,0.66163682]
[1772684301557,0.67396415,2124.1,2123.2,0.72093415]
[1772684301753,0.67396415,2124.1,2122.9,0.23546]
[1772684301754,0.68737232,2123.5,2122.9,0.23546]
[1772684301953,0.68737232,2123.5,2122.9,0.95112286]
[1772684302158,0.68737232,2123.5,2123.0,0.71566286]
[1772684303064,0.68737232,2123.5,2123.0,0.00604333]
[1772684304763,0.68737232,2123.5,2123.0,0.72170619]
[1772684305462,0.68737232,2123.5,2123.0,0.00604333]
[1772684307466,0.59224093,2123.3,2122.5,0.63840108]
[1772684308270,0.59224093,2123.3,2122.5,0.64177796]
[1772684308465,0.59224093,2123.3,2122.5,0.00337688]
[1772684308663,0.59224093,2123.3,2122.6,0.63840108]
[1772684310466,0.59224093,2123.3,2122.5,0.00337688]
[1772684310667,0.59224093,2123.3,2122.5,0.64177796]
[1772684313665,0.59224093,2123.0,2122.5,0.00337688]
[1772684313869,0.59224093,2123.0,2122.2,0.63840108]
[1772684314263,1.59714154,2122.8,2122.0,0.63840108]
[1772684314568,0.59224093,2122.7,2122.0,0.63840108]
[1772684314768,0.59224093,2122.7,2122.2,0.63840108]
[1772684314969,0.59224093,2122.7,2122.2,0.64400022]
[1772684315163,0.59224093,2123.0,2122.2,0.64400022]
[1772684316365,0.59224093,2123.0,2122.2,0.00559914]
[1772684316870,0.59224093,2123.0,2122.2,0.64400022]
[1772684322372,0.59224093,2123.3,2122.6,0.63840108]
[1772684326966,0.59224093,2123.5,2122.8,0.63840108]
[1772684329470,0.59970656,2123.3,2122.4,0.58489958]
[1772684330076,0.59970656,2123.0,2122.4,0.58489958]
[1772684330269,0.59970656,2123.2,2122.4,0.58489958]
[1772684338381,1.59714154,2123.3,2122.5,0.23551]
[1772684338683,0.59970656,2123.3,2122.6,0.58489958]
[1772684340586,0.59970656,2123.5,2122.8,0.58489958]
[1772684341589,0.59970656,2123.3,2122.6,0.58489958]
[1772684342892,0.59970656,2123.3,2122.4,4.47668193]
[1772684343091,0.59970656,2123.3,2122.5,0.58489958]
[1772684343891,0.59970656,2123.5,2122.7,0.58489958]
[1772684346996,3.93489607,2123.6,2122.8,0.23547]
[1772684347192,0.59970656,2123.7,2122.9,0.58489958]
[1772684347598,0.59970656,2123.6,2122.9,0.58489958]
[1772684348502,10.97070656,2123.8,2123.1,0.58489958]
[1772684348804,10.97070656,2123.8,2122.7,5.48892389]
[1772684348805,0.59970656,2123.9,2123.3,0.58489958]
[1772684351505,0.59970656,2123.9,2123.1,0.58489958]
[1772684352600,2.19693921,2123.6,2123.1,0.58489958]
[1772684353605,0.59970656,2123.5,2123.1,0.58489958]
[1772684356101,1.59723265,2123.8,2123.0,0.58489958]
[1772684356306,0.59970656,2123.7,2123.0,0.58489958]
[1772684356508,2.19693921,2123.4,2123.0,0.58489958]
[1772684357207,2.19693921,2123.6,2123.0,0.58489958]
[1772684358605,0.59970656,2123.6,2123.0,0.58489958]
[1772684358815,2.19219262,2123.8,2123.0,0.58489958]
[1772684359411,0.59495997,2123.7,2123.0,0.58489958]
[1772684359912,0.74954254,2124.7,2123.6,5.79059]
[1772684360209,0.60690003,2124.9,2124.2,1.59723265]
[1772684360711,0.60690003,2124.9,2124.3,0.2752742]
[1772684361011,0.61284391,2124.9,2124.3,0.28032784]
[1772684361217,0.61102407,2125.3,2124.5,0.2752742]
[1772684362512,0.61581068,2125.3,2124.5,0.2752742]
[1772684368017,6.59090851,2126.7,2125.4,0.24701193]
[1772684368313,0.10117054,2126.6,2125.8,0.24701193]
[1772684368711,0.70774312,2127.4,2125.8,0.24701193]
[1772684369212,0.71321835,2127.4,2126.0,0.71893706]
[1772684369713,0.70774312,2127.2,2126.2,0.71893706]
[1772684369913,0.70774312,2127.2,2125.8,5.78920728]
[1772684369914,0.70774312,2127.2,2126.4,0.71893706]
[1772684370114,0.00547523,2127.4,2126.6,0.71893706]
[1772684370115,0.71321835,2127.4,2126.6,0.71893706]
[1772684370313,0.70774312,2127.8,2126.6,0.71893706]
[1772684370612,0.70774312,2127.8,2126.8,0.71893706]
[1772684370813,0.70774312,2128.6,2127.0,0.71893706]
[1772684371307,0.70774312,2128.4,2127.0,0.71893706]
[1772684372715,0.70774312,2128.2,2127.0,0.71893706]
[1772684383023,0.70774312,2128.0,2127.0,0.71893706]
[1772684384925,0.70774312,2127.8,2127.0,0.71893706]
[1772684385224,0.70774312,2127.8,2126.5,0.71893706]
[1772684386615,0.70774312,2127.8,2126.7,0.71893706]
[1772684386827,0.70774312,2127.7,2126.7,0.71893706]
[1772684387020,0.70774312,2127.7,2126.9,0.71893706]
[1772684387823,0.70774312,2127.7,2126.8,0.95396706]
[1772684388120,0.70774312,2127.7,2126.8,0.71893706]
[1772684390127,0.70774312,2127.7,2126.4,0.68336617]
[1772684391724,0.69423583,2127.5,2126.4,0.68336617]
[1772684395326,0.69423583,2127.5,2126.6,0.68336617]
[1772684395633,0.69423583,2127.4,2126.6,0.68336617]
[1772684395925,0.69423583,2127.4,2126.1,9.60007867]
[1772684395926,0.69423583,2127.9,2126.8,0.68336617]
[1772684396721,0.69423583,2127.9,2126.9,0.23502]
[1772684396930,0.69423583,2127.9,2126.9,0.91838617]
[1772684397422,0.69423583,2127.9,2127.0,0.68336617]
[1772684398832,0.69423583,2128.2,2127.4,0.68336617]
[1772684399033,0.69423583,2128.5,2127.5,0.23495]
[1772684399226,0.69423583,2128.5,2127.6,0.68336617]
[1772684399828,0.00396755,2128.6,2127.8,0.68336617]
[1772684400230,0.69820338,2128.6,2127.8,0.68336617]
[1772684400735,0.69820338,2128.6,2127.7,0.68336617]
[1772684401334,0.69820338,2128.6,2127.5,0.68336617]
[1772684401924,3.32900261,2128.6,2127.4,0.00410776]
[1772684402127,0.69423583,2128.5,2127.4,0.00410776]
[1772684402835,0.69423583,2128.2,2127.1,0.68336617]
[1772684403036,0.69423583,2128.0,2126.9,0.68336617]
[1772684403939,0.69423583,2128.0,2126.9,0.68720669]
[1772684404427,0.69423583,2127.9,2126.9,0.00384052]
[1772684405635,0.67068648,2127.9,2126.9,0.00384052]
[1772684406534,0.67068648,2127.9,2126.9,0.68720669]
[1772684408739,0.67068648,2127.9,2126.9,0.00384052]
[1772684413742,0.67068648,2127.9,2126.9,0.68720669]
[1772684415846,0.67068648,2127.9,2126.9,0.00384052]
[1772684416846,0.67068648,2127.9,2126.5,0.68336617]
[1772684418046,0.67068648,2127.9,2126.5,0.68929057]
[1772684421247,0.61671307,2127.7,2126.5,0.68929057]
[1772684424555,0.61671307,2127.5,2126.5,0.68929057]
[1772684429667,0.62866344,2127.3,2126.5,0.68929057]
[1772684429867,10.366,2127.2,2126.5,0.68929057]
[1772684431262,0.62866344,2127.3,2126.5,0.68929057]
[1772684431466,10.367,2127.2,2126.5,0.68929057]
[1772684431663,10.99566344,2127.2,2126.5,0.68929057]
[1772684431967,10.367,2127.2,2126.5,0.68929057]
[1772684432769,10.99566344,2127.3,2126.5,0.68929057]
[1772684433070,0.62866344,2127.3,2126.5,0.68929057]
[1772684433271,10.367,2127.2,2126.6,0.5856478]
[1772684433467,10.99566344,2127.5,2126.7,0.5856478]
[1772684433769,0.62866344,2127.4,2126.7,0.5856478]
[1772684440976,0.62866344,2127.4,2126.5,0.5915722]
[1772684448979,0.62866344,2127.4,2126.5,0.0059244]
[1772684449184,0.54646856,2127.2,2126.5,0.0059244]
[1772684449584,0.54646856,2127.2,2126.4,0.57494611]
[1772684449786,0.54646856,2127.2,2126.2,0.57494611]
[1772684450587,0.54646856,2127.2,2126.2,0.57927391]
[1772684451786,0.54646856,2127.1,2126.2,0.57927391]
[1772684451985,0.55042783,2127.1,2126.2,0.57927391]
[1772684452187,0.55042783,2127.1,2126.2,0.0043278]
[1772684453280,0.55042783,2127.1,2126.2,0.57927391]
[1772684453485,0.54646856,2126.9,2126.2,0.57927391]
[1772684456487,0.00395927,2127.1,2126.4,0.57494611]
[1772684461291,5.88316539,2128.0,2126.7,11.5643]
[1772684461493,0.54646856,2128.2,2127.3,0.57494611]
[1772684461791,0.54646856,2128.5,2127.3,0.57494611]
[1772684462392,0.550046,2128.5,2127.3,0.57494611]
[1772684463592,0.00357744,2128.5,2127.5,0.57494611]
[1772684464193,0.550046,2128.5,2127.5,0.57494611]
[1772684465292,10.940046,2128.5,2127.5,0.57494611]
[1772684465888,0.550046,2128.5,2127.5,0.57494611]
[1772684466093,10.940046,2128.5,2127.5,0.57494611]
[1772684466591,0.54646856,2128.4,2127.5,0.57494611]
[1772684467594,10.388,2128.4,2127.5,0.57494611]
[1772684470195,10.93446856,2128.4,2127.5,0.57494611]
[1772684471194,0.54646856,2128.3,2127.5,0.57494611]
[1772684473593,10.332,2129.5,2127.5,0.57494611]
[1772684473594,0.54646856,2129.1,2127.7,0.57494611]
[1772684474390,0.54646856,2129.3,2128.1,0.57494611]
[1772684474591,0.00590637,2129.3,2128.5,0.57494611]
[1772684475196,0.00590637,2129.3,2128.7,0.57494611]
[1772684475601,10.92446856,2129.6,2128.7,0.57494611]
[1772684475995,0.54646856,2129.5,2128.7,0.57494611]
[1772684476202,0.54646856,2129.9,2128.7,0.57494611]
[1772684476503,0.54646856,2129.7,2128.7,0.57494611]
[1772684476705,0.55231666,2129.7,2128.7,0.57494611]
[1772684478604,0.54068848,2129.5,2128.7,0.57494611]
[1772684482799,0.54068848,2129.5,2128.2,0.5687604]
[1772684488613,0.56470516,2129.2,2128.2,0.5687604]
[1772684488814,0.56470516,2129.2,2128.1,0.0049128]
[1772684489013,0.56470516,2129.2,2128.1,0.57839786]
[1772684490516,0.56470516,2129.2,2128.1,0.0049128]
[1772684490916,0.56470516,2129.2,2128.1,0.57839786]
[1772684494423,0.56470516,2128.9,2128.1,0.0049128]
[1772684494624,0.56470516,2128.7,2128.1,0.0049128]
[1772684497829,0.56470516,2128.5,2128.1,0.57839786]
[1772684498426,0.56470516,2128.5,2127.7,0.57348506]
[1772684499526,0.56470516,2128.5,2127.7,0.57809296]
[1772684499727,0.56470516,2128.9,2127.7,0.57809296]
[1772684499927,0.56470516,2128.7,2127.7,0.57809296]
[1772684500128,10.348,2128.6,2127.7,0.57809296]
[1772684500322,10.348,2128.5,2127.7,0.57809296]
[1772684501028,10.349,2128.5,2127.9,0.57348506]
[1772684501524,0.56470516,2128.7,2127.9,0.57348506]
[1772684501727,10.349,2128.4,2127.9,0.57348506]
[1772684503021,10.91370516,2128.4,2127.9,0.57348506]
[1772684504826,0.56470516,2128.3,2127.9,0.57348506]
[1772684505228,10.91370516,2128.4,2127.9,0.57348506]
[1772684506438,0.56470516,2128.5,2127.9,0.57348506]
[1772684506728,9.75097474,2128.4,2128.0,0.48323037]
[1772684506934,10.35,2128.3,2128.0,0.48323037]
[1772684507130,0.56470516,2128.7,2128.0,0.48323037]
[1772684507331,9.86676963,2128.3,2128.0,0.48323037]
[1772684507532,0.59899185,2128.3,2128.0,0.48323037]
[1772684508629,10.94899185,2128.3,2128.0,0.48323037]
[1772684508830,10.94899185,2128.3,2127.8,0.23492]
[1772684509328,10.94899185,2128.3,2127.7,0.0046079]
[1772684509329,0.59949863,2128.2,2127.7,0.0046079]
[1772684509535,0.60552127,2128.2,2127.7,0.0046079]
[1772684510734,0.60070988,2128.0,2127.1,3.87264891]
[1772684511037,0.60070988,2128.0,2127.2,1.58971114]
[1772684511528,0.00602264,2128.2,2127.6,1.58971114]
[1772684511734,10.35502264,2128.2,2127.8,1.58971114]
[1772684511930,0.00602264,2128.2,2128.0,1.58971114]
[1772684512132,10.94971013,2128.3,2127.8,1.58971114]
[1772684512334,0.60071013,2128.2,2127.7,0.23493]
[1772684513129,0.60549655,2128.2,2127.7,0.23493]
[1772684514734,0.00478642,2128.2,2127.8,1.58971114]
[1772684515032,10.349,2128.3,2127.8,1.58971114]
[1772684515840,0.00415144,2128.3,2127.8,1.58971114]
[1772684516040,10.35315144,2128.3,2127.8,1.58971114]
[1772684516436,0.00415144,2128.3,2128.0,1.58971114]
[1772684516633,10.93716198,2128.4,2127.8,1.58971114]
[1772684517643,10.94165475,2128.4,2127.8,1.58971114]
[1772684518036,0.00449277,2128.4,2127.8,1.58971114]
[1772684518233,10.35249277,2128.4,2127.6,3.87601757]
[1772684518436,10.35249277,2128.4,2127.7,1.82464114]
[1772684518642,10.9426372,2128.4,2127.7,1.82464114]
[1772684518943,0.5946372,2128.4,2127.7,1.82464114]
[1772684519143,10.348,2128.3,2127.7,1.82464114]
[1772684520036,0.5946372,2128.4,2127.9,1.58971114]
[1772684520542,0.00449277,2128.4,2128.1,1.58971114]
[1772684520842,0.58244864,2128.6,2128.1,1.58971114]
[1772684521237,10.348,2128.6,2128.1,1.58971114]
[1772684521634,10.35158483,2128.6,2128.1,1.58971114]
[1772684522539,10.35158483,2128.6,2128.0,0.2349]
[1772684522540,0.00358483,2128.6,2128.0,4.10754891]
[1772684523233,0.58603347,2128.6,2128.0,4.10754891]
[1772684524044,0.58603347,2128.6,2128.0,0.2349]
[1772684527539,10.348,2128.5,2128.0,0.2349]
[1772684527936,0.00358483,2128.6,2128.0,0.2349]
[1772684528246,0.58244864,2128.5,2128.0,0.2349]
[1772684530444,0.58244864,2128.5,2127.8,3.87264891]
[1772684532347,0.58244864,2128.5,2127.6,0.23830866]
[1772684532545,10.93144864,2128.5,2127.8,0.23492]
[1772684532745,0.00358483,2128.6,2127.8,6.72922104]
[1772684532952,0.00358483,2128.6,2128.2,0.23487]
[1772684533146,0.58244864,2128.9,2128.2,0.23487]
[1772684533348,0.58244864,2128.9,2128.2,4.10751891]
[1772684533545,10.35,2128.8,2128.2,4.10751891]
[1772684533854,10.93244864,2128.8,2128.2,0.23487]
[1772684534055,10.93244864,2128.8,2128.2,4.10751891]
[1772684534257,0.58613564,2128.8,2128.2,0.23487]
[1772684534555,0.003687,2128.8,2128.2,0.23487]
[1772684534747,0.003687,2128.8,2128.2,4.10751891]
[1772684536155,0.003687,2128.8,2128.3,3.87264891]
[1772684536952,0.58613564,2128.8,2128.2,4.10751891]
[1772684537246,0.58613564,2128.8,2128.2,0.23487]
[1772684537450,0.58613564,2128.8,2128.0,3.87264891]
[1772684537451,0.58244864,2128.6,2128.0,3.87264891]
[1772684538451,0.58244864,2128.6,2127.9,0.23491]
[1772684538653,0.58244864,2128.6,2128.0,0.0480095]
[1772684540551,10.92844864,2128.6,2128.0,0.0480095]
[1772684540858,0.57205064,2128.5,2128.0,0.0480095]
[1772684541455,10.91805134,2128.6,2128.0,0.0480095]
[1772684541859,0.57205134,2128.6,2128.0,0.0480095]
[1772684542058,10.91705134,2128.6,2128.0,0.0480095]
[1772684542559,0.57126596,2128.6,2128.1,0.05402278]
[1772684542755,0.57126596,2128.6,2127.9,4.16156008]
[1772684542957,0.57126596,2128.6,2127.9,3.87264891]
[1772684543157,0.57126596,2128.6,2127.8,3.87264891]
[1772684544662,0.57126596,2128.6,2127.8,3.92931562]
[1772684545158,0.57126596,2128.6,2127.9,0.0566456]
[1772684545360,10.91292252,2128.5,2127.9,0.0566456]
[1772684545662,0.56992323,2128.7,2128.1,0.05662331]
[1772684546067,10.345687,2128.8,2128.1,0.05662331]
[1772684546267,0.003687,2128.8,2128.2,0.05662331]
[1772684546864,0.003687,2128.8,2128.4,0.05746097]
[1772684547459,10.93227903,2129.1,2128.4,0.05746097]
[1772684547966,0.59127903,2129.0,2128.4,0.05746097]
[1772684548467,0.59609771,2129.0,2128.4,0.05746097]
[1772684549367,0.59609771,2129.0,2128.3,0.23487]
[1772684549667,0.59609771,2129.0,2128.2,3.92396556]
[1772684549860,0.59609771,2129.0,2128.3,0.05131665]
[1772684550062,10.93609771,2129.0,2128.3,0.05131665]
[1772684550264,0.00481868,2129.0,2128.4,0.05131665]
[1772684550870,8.68e-06,2129.0,2128.6,0.05546995]
[1772684551063,0.59127903,2129.4,2128.6,0.05546995]
[1772684551570,0.59127903,2129.4,2128.8,0.05544941]
[1772684552063,10.93646889,2129.4,2128.8,0.05544941]
[1772684552263,0.59127903,2129.3,2128.8,0.05544941]
[1772684552568,10.34418986,2129.4,2128.8,0.05544941]
[1772684552768,0.59127903,2129.3,2128.7,0.23482]
[1772684553069,0.59127903,2129.3,2128.5,3.92923369]
[1772684553573,0.59127903,2129.3,2128.3,3.92923241]
[1772684553868,0.59127903,2129.3,2128.4,0.05656469]
[1772684554269,10.93027903,2129.2,2128.4,0.05656469]
[1772684554472,0.59127903,2129.1,2128.4,0.05656469]
[1772684555766,0.59620306,2131.4,2129.6,0.00407396]
[1772684555967,0.59620306,2131.2,2129.9,0.00407396]
[1772684556165,0.59620306,2131.0,2129.9,0.00407396]
[1772684556368,18.83342736,2132.2,2130.0,5.58748221]
[1772684556369,0.59620306,2130.8,2130.0,5.58748221]
[1772684556569,0.59620306,2130.8,2130.1,5.58748221]
[1772684556767,0.60140348,2130.8,2130.1,0.00349288]
[1772684557266,0.59598802,2130.6,2130.1,0.00349288]
[1772684558075,10.91798802,2130.6,2130.1,0.00349288]
[1772684558273,0.59598866,2130.5,2130.1,0.00349288]
[1772684558476,0.00520042,2130.8,2130.3,0.00411469]
[1772684558669,4.2e-07,2130.8,2130.3,0.23875469]
[1772684558870,4.2e-07,2130.8,2130.5,0.00409694]
[1772684559172,0.59616463,2131.1,2130.5,0.00409694]
[1772684559371,0.70391666,2132.2,2130.5,0.00409694]
[1772684559372,0.59616463,2131.4,2130.5,0.00409694]
[1772684559766,0.59616463,2131.4,2130.7,0.00407813]
[1772684560069,0.62222892,2132.2,2131.5,0.00407813]
[1772684560070,0.59616526,2132.1,2131.5,0.00407813]
[1772684560369,0.59616526,2131.9,2130.9,0.00407813]
[1772684560567,0.59616526,2131.9,2130.7,0.23459]
[1772684560768,9.878,2131.8,2130.7,0.23459]
[1772684561068,0.60329817,2131.7,2130.7,0.23459]
[1772684562769,0.60107145,2132.0,2130.7,6.00587]
[1772684563072,0.60107145,2131.9,2130.7,6.00587]
[1772684563268,0.60107145,2131.9,2130.9,0.23458]
[1772684566381,0.60107145,2131.9,2131.3,0.23453]
[1772684566579,0.60107145,2131.9,2130.5,5.77179]
[1772684566580,0.60107145,2131.9,2130.6,5.77157]
[1772684566876,0.60107145,2131.9,2131.1,6.00477]
[1772684567279,0.61144873,2132.9,2131.5,0.2345]
[1772684567868,0.61144873,2132.9,2131.1,0.00625919]
[1772684568275,0.61144873,2132.9,2131.5,0.00625919]
[1772684568276,0.61567165,2132.9,2131.5,0.00625919]
[1772684568477,0.61567165,2132.9,2131.6,0.23449]
[1772684568675,0.61567165,2132.9,2131.6,0.24181221]
[1772684569482,0.6015632,2132.8,2132.0,0.23446]
[1772684569681,9.82534805,2135.3,2132.5,6.56052104]
[1772684569682,0.56490478,2133.0,2132.5,6.56052104]
[1772684569886,0.56490478,2133.8,2132.6,0.55976104]
[1772684570384,0.56490478,2133.8,2132.5,0.2344]
[1772684570685,0.568895,2133.8,2132.5,0.2344]
[1772684570886,0.56490478,2133.7,2132.5,0.2344]
[1772684571083,0.56490478,2133.7,2132.6,0.55976104]
[1772684573281,0.56490478,2133.7,2132.5,0.2344]
[1772684573484,0.56490478,2133.7,2132.6,0.55976104]
[1772684574081,0.56490478,2133.7,2132.8,0.55976104]
[1772684574480,0.56490478,2133.7,2132.7,0.23438]
[1772684574982,0.56490478,2133.7,2133.0,0.55976104]
[1772684575184,0.56490478,2133.7,2132.9,0.23436]
[1772684575185,0.00399022,2133.8,2133.2,0.55976104]
[1772684575483,0.00399022,2133.8,2133.2,0.56520022]
[1772684575788,0.568895,2133.8,2133.2,0.56520022]
[1772684576082,0.568895,2133.8,2133.2,0.00543918]
[1772684577085,0.56490478,2135.2,2133.6,0.55976104]
[1772684577389,0.56490478,2135.2,2133.5,0.23429]
[1772684577687,0.56490478,2135.0,2133.5,0.79405104]
[1772684577885,0.56490478,2134.8,2133.3,0.55976104]
[1772684578082,0.56490478,2134.7,2133.3,0.55976104]
[1772684578481,0.56490478,2134.6,2133.3,0.55976104]
[1772684578683,0.56490478,2134.6,2133.2,0.00543918]
[1772684579185,0.56490478,2134.4,2133.2,0.00543918]
[1772684580085,0.56490478,2134.2,2133.2,0.00543918]
[1772684580490,0.56490478,2134.2,2132.6,0.55976104]
[1772684581193,0.56490478,2134.0,2132.8,0.55976104]
[1772684581388,0.56490478,2134.0,2132.8,0.56510754]
[1772684581785,0.56490478,2134.0,2132.8,0.0053465]
[1772684582284,0.56490478,2133.8,2132.2,0.79419104]
[1772684582486,0.56490478,2133.6,2132.0,0.55976104]
[1772684582793,0.56490478,2133.6,2131.8,0.55976104]
[1772684583289,0.56490478,2133.4,2132.4,0.55976104]
[1772684583591,0.00557851,2134.8,2132.8,0.55976104]
[1772684583592,0.56490478,2133.7,2132.8,0.55976104]
[1772684584182,0.56490478,2134.7,2132.8,0.55976104]
[1772684584401,0.56490478,2134.5,2132.8,0.55976104]
[1772684584693,0.56490478,2134.5,2132.9,0.23436]
[1772684584883,0.56490478,2134.5,2132.9,0.79412104]
[1772684585085,0.56490478,2134.5,2132.9,0.23436]
[1772684585287,0.56490478,2134.3,2132.9,0.23436]
[1772684585890,0.56490478,2134.3,2132.5,0.55976104]
[1772684586090,0.56490478,2134.3,2132.4,0.23441]
[1772684586295,0.56490478,2134.2,2132.4,0.23441]
[1772684586993,0.56490478,2134.0,2132.4,0.23441]
[1772684587192,0.56490478,2133.8,2132.4,0.23441]
[1772684587389,0.56490478,2133.6,2132.4,0.23441]
[1772684587590,0.56490478,2133.5,2132.0,0.55976104]
[1772684587989,0.56490478,2133.4,2132.2,0.55976104]
[1772684588190,0.56490478,2133.4,2132.1,0.79421104]
[1772684588791,0.56490478,2133.4,2132.1,0.23445]
[1772684588993,0.56490478,2133.2,2132.1,0.23445]
[1772684589296,0.56842638,2133.2,2131.8,0.56410039]
[1772684589693,0.56842638,2133.2,2131.8,0.00433935]
[1772684589993,0.56490478,2133.0,2131.8,0.56410039]
[1772684590296,0.56490478,2132.9,2131.8,0.56410039]
[1772684590696,0.56490478,2132.9,2131.8,0.00433935]
[1772684591394,0.56490478,2132.7,2131.8,0.00433935]
[1772684592301,0.56490478,2132.7,2131.8,0.56410039]
[1772684593202,0.56490478,2132.7,2131.8,0.00433935]
[1772684595702,0.56490478,2132.5,2131.8,0.00433935]
[1772684596798,10.57790478,2132.5,2131.8,0.00433935]
[1772684597099,0.56490478,2132.4,2131.8,0.00433935]
[1772684597906,0.56490478,2132.4,2131.3,0.54729276]
[1772684598307,0.56490478,2132.4,2131.1,0.78618211]
[1772684598507,0.56490478,2132.4,2131.2,5.6018977]
[1772684598707,0.56490478,2132.4,2131.2,0.52769018]
[1772684598907,0.56490478,2132.4,2131.2,0.00533651]
[1772684599408,0.56490478,2132.4,2131.4,0.52769018]
[1772684599710,0.56490478,2132.4,2131.3,0.23453]
[1772684599908,0.56490478,2132.4,2131.2,0.53299755]
[1772684600104,0.56490478,2132.4,2131.2,0.00533651]
[1772684601612,0.55027396,2132.3,2131.2,0.00533651]
[1772684602204,0.55027396,2132.3,2130.8,0.23458]
[1772684602406,0.55027396,2132.3,2130.7,0.53941707]
[1772684602809,0.55027396,2132.3,2130.5,0.53954816]
[1772684602998,0.55027396,2132.3,2130.6,6.13305015]
[1772684603303,0.55027396,2132.3,2130.6,0.00597122]
[1772684603503,2.61350433,2132.0,2130.6,0.00597122]
[1772684603709,0.55027396,2131.9,2130.6,0.00597122]
[1772684603908,0.55027396,2131.7,2130.6,0.00597122]
[1772684604210,0.55027396,2131.5,2130.6,0.00597122]
[1772684608512,0.55027396,2131.5,2130.3,0.23464]
[1772684609509,0.55027396,2131.5,2130.3,0.23803447]
[1772684609808,0.55027396,2131.5,2130.3,0.00339447]
[1772684610411,0.54867029,2131.3,2130.3,0.493443]
[1772684610813,0.54867029,2131.3,2130.3,0.00339447]
[1772684611312,0.54867029,2131.2,2130.3,0.48904312]
[1772684614316,0.54867029,2131.2,2130.4,0.73117073]
[1772684615213,0.54867029,2131.2,2130.4,0.23463]
[1772684615915,0.54867029,2131.1,2130.4,0.23463]
[1772684617421,0.54867029,2131.1,2130.3,0.00339447]
[1772684618019,0.54867029,2130.9,2130.3,0.00339447]
[1772684619620,0.54867029,2130.8,2130.2,0.46436998]
[1772684620410,0.54867029,2130.8,2130.2,0.4691972]
[1772684620617,0.54867029,2131.4,2130.2,0.4691972]
[1772684620814,0.54867029,2131.2,2130.2,0.4691972]
[1772684622020,0.54867029,2131.2,2130.2,0.00482722]
[1772684622218,0.54867029,2131.2,2130.2,0.46984023]
[1772684622424,0.54867029,2131.4,2130.5,0.23462]
[1772684622614,0.54867029,2131.4,2130.6,0.46004417]
[1772684622817,0.54867029,2131.4,2130.7,0.2346]
[1772684623019,0.54867029,2131.4,2130.8,0.46003638]
[1772684624019,0.54867029,2131.4,2130.5,0.46002895]
[1772684624320,0.54867029,2131.4,2130.7,0.46002895]
[1772684628125,0.54867029,2131.4,2130.8,5.58540654]
[1772684628322,0.54867029,2131.4,2130.8,0.43863712]
[1772684628526,0.54867029,2131.4,2130.5,4.3359654]
[1772684628825,0.54867029,2131.4,2130.6,5.58551408]
[1772684629024,0.54867029,2131.4,2130.7,5.58551408]
[1772684629221,0.54867029,2131.4,2130.5,0.49786794]
[1772684629417,0.54867029,2131.4,2130.6,5.532012]
[1772684629622,0.54867029,2131.4,2130.7,5.532012]
[1772684629817,0.54867029,2131.4,2130.5,0.49786794]
[1772684630022,0.54867029,2131.4,2130.6,5.53243752]
[1772684630224,0.54867029,2131.4,2130.7,5.53243752]
[1772684630423,0.54867029,2131.4,2130.4,0.5113259]
[1772684630622,0.54867029,2131.4,2130.5,5.53295582]
[1772684630827,0.54867029,2131.4,2130.6,5.53295582]
[1772684631030,0.54867029,2131.4,2130.4,0.5113259]
[1772684631727,0.54867029,2131.4,2130.3,3.83809746]
[1772684632023,0.54867029,2131.4,2130.2,0.75453343]
[1772684632425,0.54867029,2131.4,2130.2,0.51988343]
[1772684635631,0.54867029,2131.4,2130.2,0.00482722]
[1772684636431,0.55819173,2131.3,2130.2,0.00482722]
[1772684637328,0.55819173,2131.3,2130.2,0.51988343]
[1772684638827,0.55819173,2131.3,2130.2,0.00482722]
[1772684639433,0.55819173,2131.1,2130.2,0.51988343]
[1772684639623,0.55819173,2130.9,2130.2,0.51988343]
[1772684641530,0.55819173,2131.6,2130.2,0.51988343]
[1772684641732,0.55819173,2131.4,2130.2,0.51988343]
[1772684642826,10.427,2131.5,2129.9,0.51505621]
[1772684642827,0.55819173,2131.2,2129.9,0.51505621]
[1772684643030,0.55819173,2131.0,2130.1,0.51505621]
[1772684643326,0.55819173,2130.9,2130.1,0.51505621]
[1772684643930,0.55819173,2130.9,2130.1,0.51979307]
[1772684644129,0.55819173,2131.1,2130.2,0.51505621]
[1772684647236,0.55819173,2131.0,2130.2,0.51505621]
[1772684658546,10.94667425,2130.9,2130.2,0.51505621]
[1772684658742,0.59267425,2130.8,2130.2,0.51505621]
[1772684659337,0.59267425,2131.2,2130.4,0.55646491]
[1772684659536,10.94267425,2131.3,2130.6,0.55646491]
[1772684660344,0.59267425,2131.2,2130.6,0.55646491]
[1772684663452,10.93467425,2131.5,2130.8,0.55646491]
[1772684663653,0.59618948,2131.7,2131.0,0.55646491]
[1772684663852,0.59618948,2131.7,2131.2,0.55646491]
[1772684663853,0.00351523,2131.7,2131.2,0.55646491]
[1772684664052,0.59618948,2131.7,2131.2,0.55646491]
[1772684666560,0.59618948,2131.7,2130.8,0.60820358]
[1772684666757,10.93154885,2131.6,2130.8,0.60820358]
[1772684667151,0.58854885,2131.6,2130.8,0.60820358]
[1772684669655,10.347,2131.5,2130.8,0.60820358]
[1772684670058,0.58854885,2131.6,2130.8,0.60820358]
[1772684670258,10.35051523,2131.7,2130.8,0.60820358]
[1772684670666,10.93906408,2131.7,2130.8,0.60820358]
[1772684671568,0.58854885,2131.6,2130.8,0.60820358]
[1772684672563,0.58854885,2131.6,2130.6,0.2346]
[1772684672873,0.58854885,2131.6,2130.7,0.60820358]
[1772684674470,0.58854885,2131.6,2130.5,0.60820358]